fUST/lending_fUST_20250717
["ID","MTS","AMOUNT","RATE_DAILY","PERIOD"]
[372568296,1752685863855,-530.9,0.00022465,2]
[372568297,1752685863866,-460.0,0.00022465,2]
[372568298,1752685863875,-460.0,0.00022465,2]
[372568299,1752685863885,-460.0,0.00022465,2]
[372568300,1752685863894,-613.81,0.00022465,2]
[372568301,1752685863905,-641.21,0.00022465,2]
[372568302,1752685863915,-577.21,0.00022465,2]
[372568303,1752685863924,-460.0,0.00022465,2]
[372568304,1752685863933,-1400.36,0.00022465,2]
[372568305,1752685863943,-476.08,0.00022465,2]
[372568306,1752685863953,-563.13,0.00022465,2]
[372568307,1752685863962,-671.66,0.00022465,2]
[372568308,1752685863972,-2382.71,0.00022465,2]
[372568309,1752685863981,-731.92,0.00022465,2]
[372568310,1752685863990,-460.0,0.00022465,2]
[372568311,1752685863999,-3088.72,0.00022465,2]
[372568312,1752685864009,-151.0,0.0002249,7]
[372568313,1752685864018,-506.55347142,0.0002249,7]
[372568314,1752685864028,-238.706692,0.0002249,7]
[372568315,1752685864038,-238.706692,0.0002249,7]
[372568316,1752685864047,-151.0,0.0002249,7]
[372568317,1752685864057,-151.0,0.0002249,7]
[372568318,1752685864066,-210.739622,0.0002249,7]
[372568319,1752685864075,-210.739622,0.0002249,7]
[372568320,1752685864085,-437.944462,0.0002249,7]
[372568321,1752685864094,-437.944462,0.0002249,7]
[372568322,1752685864104,-238.705138,0.0002249,7]
[372568323,1752685864114,-238.705138,0.0002249,7]
[372568324,1752685864123,-154.299843,0.0002249,7]
[372568325,1752685864133,-459.6,0.00022516,5]
[372568326,1752685864143,-5916.31313928,0.00022521,7]
[372568327,1752685864152,-325.823628,0.00022603,2]
[372568328,1752685864162,-546.78304288,0.00022603,2]
[372568329,1752685864171,-153.0,0.00022603,2]
[372568330,1752685864181,-300.0,0.0002264,2]
[372568331,1752685864191,-1539.0,0.00022641,2]
[372568332,1752685864201,-460.0,0.00022739,2]
[372568333,1752685864211,-460.0,0.00022739,2]
[372568334,1752685864221,-593.36,0.00022739,2]
[372568335,1752685864230,-460.0,0.00022739,2]
[372568336,1752685864240,-460.0,0.00022739,2]
[372568337,1752685864250,-579.17,0.00022739,2]
[372568338,1752685864259,-657.27,0.00022739,2]
[372568339,1752685864269,-460.0,0.00022739,2]
[372568340,1752685864278,-289.30813679,0.00022739,2]
[372568341,1752685864288,-729.43,0.00022739,2]
[372568342,1752685864297,-460.0,0.00022739,2]
[372568343,1752685864307,-460.0,0.00022739,2]
[372568344,1752685864315,-1666.88,0.00022739,2]
[372568345,1752685864323,-1697.15,0.00022739,2]
[372568346,1752685864333,-1357.78,0.00022739,2]
[372568347,1752685864341,-460.0,0.00022739,2]
[372568348,1752685864349,-586.34,0.00022739,2]
[372568349,1752685864357,-755.09,0.00022739,2]
[372568350,1752685864368,-460.0,0.00022739,2]
[372568351,1752685864379,-760.93,0.00022739,2]
[372568352,1752685864388,-460.0,0.00022739,2]
[372568353,1752685864398,-460.0,0.00022739,2]
[372568354,1752685864408,-2012.57,0.00022739,2]
[372568355,1752685864419,-587.6,0.00022739,2]
[372568356,1752685864428,-5099.27,0.00022739,2]
[372568357,1752685864438,-1833.17,0.00022739,2]
[372568358,1752685864449,-460.0,0.00022739,2]
[372568359,1752685864459,-460.0,0.00022739,2]
[372568360,1752685864469,-537.99,0.00022739,2]
[372568361,1752685864479,-593.0,0.00022739,2]
[372568362,1752685864488,-460.0,0.00022739,2]
[372568363,1752685864497,-460.0,0.00022739,2]
[372568364,1752685864507,-1021.02,0.00022739,2]
[372568365,1752685864516,-460.0,0.00022739,2]
[372568366,1752685864526,-1535.14,0.00022739,2]
[372568367,1752685864535,-914.77,0.00022739,2]
[372568368,1752685864545,-460.0,0.00022739,2]
[372568369,1752685864555,-460.0,0.00022739,2]
[372568370,1752685864564,-5881.17,0.00022739,2]
[372568371,1752685864574,-460.0,0.00022739,2]
[372568372,1752685864584,-460.0,0.00022739,2]
[372568373,1752685864593,-1200.41,0.00022739,2]
[372568374,1752685864604,-4675.14,0.00022739,2]
[372568375,1752685864614,-460.0,0.00022739,2]
[372568376,1752685864623,-1850.24,0.00022739,2]
[372568377,1752685864732,-922.03,0.00022739,2]
[372568378,1752685864743,-2753.5,0.00022739,2]
[372568379,1752685864753,-881.48,0.00022739,2]
[372568380,1752685864763,-694.7,0.00022739,2]
[372568381,1752685864773,-530.9,0.00022739,2]
[372568382,1752685864782,-460.0,0.00022739,2]
[372568383,1752685864792,-460.0,0.00022739,2]
[372568384,1752685864801,-460.0,0.00022739,2]
[372568385,1752685864812,-613.81,0.00022739,2]
[372568386,1752685864821,-641.21,0.00022739,2]
[372568387,1752685864831,-577.21,0.00022739,2]
[372568388,1752685864840,-460.0,0.00022739,2]
[372568389,1752685864850,-1400.36,0.00022739,2]
[372568390,1752685864859,-476.08,0.00022739,2]
[372568391,1752685864871,-563.13,0.00022739,2]
[372568392,1752685864880,-671.66,0.00022739,2]
[372568393,1752685864890,-2382.71,0.00022739,2]
[372568394,1752685864899,-731.92,0.00022739,2]
[372568395,1752685864909,-460.0,0.00022739,2]
[372568396,1752685864918,-3088.72,0.00022739,2]
[372568397,1752685864928,-5916.31313928,0.00022762,7]
[372568398,1752685864937,-760.0,0.00022788,2]
[372568399,1752685864947,-160.0,0.00022791,4]
[372568400,1752685864956,-159.7314836,0.00022835,2]
[372568401,1752685864966,-159.7314836,0.00022835,2]
[372568402,1752685864975,-355.2529222,0.00022835,2]
[372568403,1752685864984,-178.021619,0.00022835,2]
[372568404,1752685864994,-500.0,0.0002285,2]
[372568405,1752685865003,-215.0738,0.00022854,2]
[372568406,1752685865013,-459.6,0.0002289,5]
[372568407,1752685865023,-154.299843,0.00022996,14]
[372568408,1752685865033,-500.0,0.00023,8]
[372568409,1752685865042,-154.299843,0.00023,10]
[372568410,1752685865051,-230.8109288,0.00023,3]
[372568411,1752685865061,-215.5496034,0.00023,3]
[372568412,1752685865071,-4020.09,0.00023,7]
[372568413,1752685865081,-5099.04,0.00023,7]
[372568414,1752685865090,-45179.26,0.00023,2]
[372568415,1752685865100,-50726.35,0.00023,7]
[372568416,1752685865110,-838.99048831,0.00023,3]
[372568417,1752685865123,-525.58295679,0.00023,3]
[372568418,1752685865134,-5916.31313928,0.00023003,8]
[372568419,1752685865143,-460.0,0.00023013,2]
[372568420,1752685865153,-460.0,0.00023013,2]
[372568422,1752685865163,-593.36,0.00023013,2]
[372568423,1752685865172,-460.0,0.00023013,2]
[372568424,1752685865182,-460.0,0.00023013,2]
[372568425,1752685865191,-579.17,0.00023013,2]
[372568426,1752685865201,-657.27,0.00023013,2]
[372568427,1752685865210,-460.0,0.00023013,2]
[372568428,1752685865220,-729.43,0.00023013,2]
[372568429,1752685865229,-460.0,0.00023013,2]
[372568430,1752685865239,-1666.88,0.00023013,2]
[372568431,1752685865249,-1697.15,0.00023013,2]
[372568432,1752685865258,-1357.78,0.00023013,2]
[372568433,1752685865267,-460.0,0.00023013,2]
[372568434,1752685865277,-586.34,0.00023013,2]
[372568435,1752685865286,-755.09,0.00023013,2]
[372568436,1752685865296,-460.0,0.00023013,2]
[372568437,1752685865305,-760.93,0.00023013,2]
[372568438,1752685865315,-460.0,0.00023013,2]
[372568439,1752685865325,-460.0,0.00023013,2]
[372568440,1752685865335,-2012.57,0.00023013,2]
[372568441,1752685865345,-587.6,0.00023013,2]
[372568442,1752685865355,-5099.27,0.00023013,2]
[372568443,1752685865366,-1833.17,0.00023013,2]
[372568444,1752685865377,-460.0,0.00023013,2]
[372568445,1752685865388,-460.0,0.00023013,2]
[372568446,1752685865398,-537.99,0.00023013,2]
[372568447,1752685865408,-593.0,0.00023013,2]
[372568448,1752685865419,-460.0,0.00023013,2]
[372568449,1752685865428,-242.96,0.00023013,2]
[372568450,1752685865439,-1021.02,0.00023013,2]
[372568451,1752685865449,-460.0,0.00023013,2]
[372568452,1752685865459,-1535.14,0.00023013,2]
[372568453,1752685865469,-914.77,0.00023013,2]
[372568454,1752685865479,-460.0,0.00023013,2]
[372568455,1752685865488,-460.0,0.00023013,2]
[372568456,1752685865498,-5881.17,0.00023013,2]
[372568457,1752685865508,-460.0,0.00023013,2]
[372568458,1752685865518,-460.0,0.00023013,2]
[372568459,1752685865527,-1200.41,0.00023013,2]
[372568460,1752685865537,-4675.14,0.00023013,2]
[372568461,1752685865546,-460.0,0.00023013,2]
[372568462,1752685865556,-1850.24,0.00023013,2]
[372568463,1752685865566,-922.03,0.00023013,2]
[372568464,1752685865576,-2753.5,0.00023013,2]
[372568465,1752685865586,-881.48,0.00023013,2]
[372568466,1752685865597,-694.7,0.00023013,2]
[372568467,1752685865607,-530.9,0.00023013,2]
[372568468,1752685865619,-460.0,0.00023013,2]
[372568469,1752685865629,-460.0,0.00023013,2]
[372568470,1752685865639,-460.0,0.00023013,2]
[372568471,1752685865650,-613.81,0.00023013,2]
[372568472,1752685865660,-577.21,0.00023013,2]
[372568473,1752685865670,-641.21,0.00023013,2]
[372568474,1752685865680,-460.0,0.00023013,2]
[372568475,1752685865690,-1400.36,0.00023013,2]
[372568476,1752685865699,-476.08,0.00023013,2]
[372568477,1752685865709,-563.13,0.00023013,2]
[372568478,1752685865719,-671.66,0.00023013,2]
[372568479,1752685865729,-2382.71,0.00023013,2]
[372568480,1752685865739,-731.92,0.00023013,2]
[372568481,1752685865749,-419.6,0.00023013,2]
[372568482,1752685865759,-3088.72,0.00023013,2]
[372568483,1752685865769,-237.0,0.00023014,7]
[372568484,1752685865779,-2055.41,0.00023037,2]
[372568485,1752685865788,-429.1687796,0.00023096,2]
[372568486,1752685865798,-429.1687796,0.00023096,2]
[372568487,1752685865808,-429.1687796,0.00023096,2]
[372568488,1752685865818,-429.1687796,0.00023096,2]
[372568489,1752685865827,-429.1687796,0.00023096,2]
[372568490,1752685865837,-500.0,0.00023148,2]
[372568491,1752685865847,-154.299843,0.00023151,6]
[372568492,1752685865858,-300.0,0.00023188,2]
[372568493,1752685865872,-3000.0,0.000232,2]
[372568494,1752685865883,-3000.0,0.0002321,2]
[372568495,1752685865893,-154.299843,0.0002321,8]
[372568496,1752685865904,-3000.0,0.0002322,2]
[372568497,1752685865914,-3000.0,0.0002323,2]
[372568498,1752685865924,-150.0,0.00023236,2]
[372568499,1752685865934,-203.312,0.00023238,2]
[372568500,1752685865944,-175.61,0.00023238,2]
[372568501,1752685865954,-3000.0,0.0002324,2]
[372568502,1752685865964,-5916.31313928,0.00023245,8]
[372568503,1752685865974,-154.52,0.00023247,2]
[372568504,1752685865983,-3000.0,0.0002325,2]
[372568505,1752685865994,-3000.0,0.0002326,2]
[372568506,1752685866004,-5888.0,0.00023263,2]
[372568507,1752685866014,-459.6,0.00023265,5]
[372568508,1752685866024,-3000.0,0.0002327,2]
[372568509,1752685866034,-3000.0,0.0002328,2]
[372568510,1752685866044,-460.0,0.00023287,2]
[372568511,1752685866054,-460.0,0.00023287,2]
[372568512,1752685866064,-593.36,0.00023287,2]
[372568513,1752685866073,-460.0,0.00023287,2]
[372568514,1752685866083,-460.0,0.00023287,2]
[372568515,1752685866094,-579.17,0.00023287,2]
[372568516,1752685866104,-657.27,0.00023287,2]
[372568517,1752685866114,-460.0,0.00023287,2]
[372568518,1752685866125,-729.43,0.00023287,2]
[372568519,1752685866135,-460.0,0.00023287,2]
[372568520,1752685866145,-1666.88,0.00023287,2]
[372568521,1752685866154,-1697.15,0.00023287,2]
[372568522,1752685866164,-1357.78,0.00023287,2]
[372568523,1752685866173,-293.94,0.00023287,2]
[372568524,1752685866183,-586.34,0.00023287,2]
[372568525,1752685866193,-755.09,0.00023287,2]
[372568526,1752685866203,-273.08,0.00023287,2]
[372568527,1752685866212,-760.93,0.00023287,2]
[372568528,1752685866222,-460.0,0.00023287,2]
[372568529,1752685866232,-284.26,0.00023287,2]
[372568530,1752685866241,-2012.57,0.00023287,2]
[372568531,1752685866251,-587.6,0.00023287,2]
[372568532,1752685866260,-5099.27,0.00023287,2]
[372568533,1752685866270,-1833.17,0.00023287,2]
[372568534,1752685866280,-537.99,0.00023287,2]
[372568535,1752685866290,-460.0,0.00023287,2]
[372568536,1752685866300,-593.0,0.00023287,2]
[372568537,1752685866309,-1021.02,0.00023287,2]
[372568538,1752685866319,-460.0,0.00023287,2]
[372568539,1752685866328,-1535.14,0.00023287,2]
[372568540,1752685866338,-914.77,0.00023287,2]
[372568541,1752685866349,-315.48,0.00023287,2]
[372568542,1752685866359,-460.0,0.00023287,2]
[372568543,1752685866372,-5881.17,0.00023287,2]
[372568544,1752685866381,-354.48,0.00023287,2]
[372568545,1752685866391,-511.07453528,0.00023287,2]
[372568546,1752685866402,-1200.41,0.00023287,2]
[372568547,1752685866413,-4675.14,0.00023287,2]
[372568548,1752685866422,-460.0,0.00023287,2]
[372568549,1752685866432,-1850.24,0.00023287,2]
[372568550,1752685866442,-922.03,0.00023287,2]
[372568551,1752685866451,-2753.5,0.00023287,2]
[372568552,1752685866463,-881.48,0.00023287,2]
[372568553,1752685866473,-694.7,0.00023287,2]
[372568554,1752685866483,-530.9,0.00023287,2]
[372568555,1752685866492,-460.0,0.00023287,2]
[372568556,1752685866501,-460.0,0.00023287,2]
[372568557,1752685866511,-460.0,0.00023287,2]
[372568558,1752685866520,-613.81,0.00023287,2]
[372568559,1752685866530,-577.21,0.00023287,2]
[372568560,1752685866539,-641.21,0.00023287,2]
[372568561,1752685866550,-490.0314391,0.00023287,2]
[372568562,1752685866559,-1400.36,0.00023287,2]
[372568563,1752685866569,-476.08,0.00023287,2]
[372568564,1752685866579,-563.13,0.00023287,2]
[372568565,1752685866588,-671.66,0.00023287,2]
[372568566,1752685866600,-2382.71,0.00023287,2]
[372568567,1752685866610,-731.92,0.00023287,2]
[372568568,1752685866623,-3088.72,0.00023287,2]
[372568569,1752685866633,-3000.0,0.0002329,2]
[372568570,1752685866642,-154.299843,0.00023296,2]
[372568571,1752685866754,-3000.0,0.000233,2]
[372568572,1752685866764,-151.0,0.000233,7]
[372568573,1752685866775,-437.944462,0.000233,7]
[372568574,1752685866785,-437.944462,0.000233,7]
[372568575,1752685866794,-3000.0,0.0002331,2]
[372568576,1752685866804,-3000.0,0.0002332,2]
[372568577,1752685866814,-3030.09671886,0.00023326,2]
[372568578,1752685866824,-3000.0,0.0002333,2]
[372568579,1752685866833,-860.0,0.00023336,2]
[372568580,1752685866843,-3000.0,0.0002334,2]
[372568581,1752685866853,-3000.0,0.0002335,2]
[372568582,1752685866863,-3000.0,0.0002336,2]
[372568583,1752685866875,-154.299843,0.00023367,7]
[372568584,1752685866885,-3000.0,0.0002337,2]
[372568585,1752685866895,-3000.0,0.0002338,2]
[372568586,1752685866905,-150.0,0.00023388,2]
[372568587,1752685866914,-151.011,0.00023388,2]
[372568588,1752685866924,-150.461,0.00023388,2]
[372568589,1752685866933,-218.018,0.00023388,2]
[372568590,1752685866943,-647.0,0.00023388,2]
[372568591,1752685866953,-2155.0,0.00023388,2]
[372568592,1752685866963,-968.0,0.00023388,2]
[372568593,1752685866972,-3000.0,0.0002339,2]
[372568594,1752685866981,-3000.0,0.000234,2]
[372568595,1752685866991,-151.0,0.000234,7]
[372568596,1752685867000,-210.739622,0.000234,7]
[372568597,1752685867010,-210.739622,0.000234,7]
[372568598,1752685867019,-500.68946202,0.000234,2]
[372568599,1752685867029,-5888.0,0.00023408,2]
[372568600,1752685867039,-3000.0,0.0002341,2]
[372568601,1752685867050,-3000.0,0.0002342,2]
[372568602,1752685867061,-153.0,0.00023425,2]
[372568603,1752685867070,-153.0,0.00023425,2]
[372568604,1752685867080,-153.0,0.00023425,2]
[372568605,1752685867090,-153.0,0.00023425,2]
[372568606,1752685867100,-3000.0,0.0002343,2]
[372568607,1752685867110,-3000.0,0.0002344,2]
[372568608,1752685867121,-3000.0,0.0002345,2]
[372568609,1752685867131,-500.0,0.00023456,2]
[372568610,1752685867141,-3000.0,0.0002346,2]
[372568611,1752685867151,-5888.0,0.00023462,2]
[372568612,1752685867160,-3000.0,0.0002347,2]
[372568613,1752685867170,-3000.0,0.0002348,2]
[372568614,1752685867179,-5916.31313928,0.00023486,9]
[372568615,1752685867189,-3000.0,0.0002349,2]
[372568616,1752685867199,-2566.0,0.000235,2]
[372568617,1752685867209,-2566.0,0.000235,2]
[372568618,1752685867219,-2566.0,0.000235,2]
[372568619,1752685867228,-2566.0,0.000235,2]
[372568620,1752685867238,-2566.0,0.000235,2]
[372568621,1752685867248,-2566.0,0.000235,2]
[372568622,1752685867258,-2566.0,0.000235,2]
[372568623,1752685867270,-2566.0,0.000235,2]
[372568624,1752685867279,-2566.0,0.000235,2]
[372568625,1752685867289,-2566.0,0.000235,2]
[372568626,1752685867298,-3000.0,0.000235,2]
[372568627,1752685867308,-306.0,0.00023507,2]
[372568628,1752685867318,-319.4629672,0.00023507,2]
[372568629,1752685867328,-159.7314836,0.00023507,2]
[372568630,1752685867337,-159.7314836,0.00023507,2]
[372568631,1752685867347,-576.8651031,0.00023507,2]
[372568632,1752685867356,-576.8651031,0.00023507,2]
[372568633,1752685867367,-576.8651031,0.00023507,2]
[372568634,1752685867384,-306.0,0.00023507,2]
[372568635,1752685867394,-3000.0,0.0002351,2]
[372568636,1752685867404,-3000.0,0.0002352,2]
[372568637,1752685867414,-3000.0,0.0002353,2]
[372568638,1752685867426,-3000.0,0.0002354,2]
[372568639,1752685867437,-3000.0,0.0002355,2]
[372568640,1752685867450,-3000.0,0.0002356,2]
[372568641,1752685867463,-151.0,0.00023561,7]
[372568642,1752685867474,-238.706692,0.00023561,7]
[372568643,1752685867485,-238.706692,0.00023561,7]
[372568644,1752685867495,-200.0,0.00023561,2]
[372568645,1752685867505,-200.0,0.00023561,2]
[372568646,1752685867515,-200.0,0.00023561,2]
[372568647,1752685867526,-200.0,0.00023561,2]
[372568648,1752685867537,-200.0,0.00023561,2]
[372568649,1752685867547,-200.0,0.00023561,2]
[372568650,1752685867557,-200.0,0.00023561,2]
[372568651,1752685867566,-200.0,0.00023561,2]
[372568652,1752685867576,-200.0,0.00023561,2]
[372568653,1752685867586,-200.0,0.00023561,2]
[372568654,1752685867595,-200.0,0.00023561,2]
[372568655,1752685867605,-200.0,0.00023561,2]
[372568656,1752685867615,-200.0,0.00023561,2]
[372568657,1752685867630,-200.0,0.00023561,2]
[372568658,1752685867640,-200.0,0.00023561,2]
[372568659,1752685867650,-200.0,0.00023561,2]
[372568660,1752685867660,-200.0,0.00023561,2]
[372568661,1752685867676,-460.0,0.00023561,2]
[372568662,1752685867695,-460.0,0.00023561,2]
[372568663,1752685867709,-593.36,0.00023561,2]
[372568664,1752685867727,-460.0,0.00023561,2]
[372568665,1752685867746,-460.0,0.00023561,2]
[372568666,1752685867764,-579.17,0.00023561,2]
[372568667,1752685867782,-657.27,0.00023561,2]
[372568668,1752685867797,-460.0,0.00023561,2]
[372568669,1752685867814,-238.705138,0.00023561,7]
[372568670,1752685867830,-238.705138,0.00023561,7]
[372568671,1752685867844,-729.43,0.00023561,2]
[372568672,1752685867861,-460.0,0.00023561,2]
[372568673,1752685867881,-1666.88,0.00023561,2]
[372568674,1752685867898,-1697.15,0.00023561,2]
[372568675,1752685867916,-1357.78,0.00023561,2]
[372568676,1752685867927,-586.34,0.00023561,2]
[372568677,1752685867940,-755.09,0.00023561,2]
[372568678,1752685867959,-760.93,0.00023561,2]
[372568679,1752685867974,-460.0,0.00023561,2]
[372568680,1752685867989,-2012.57,0.00023561,2]
[372568681,1752685868002,-587.6,0.00023561,2]
[372568682,1752685868015,-5099.27,0.00023561,2]
[372568683,1752685868030,-1833.17,0.00023561,2]
[372568684,1752685868045,-537.99,0.00023561,2]
[372568685,1752685868058,-460.0,0.00023561,2]
[372568686,1752685868072,-593.0,0.00023561,2]
[372568687,1752685868086,-1021.02,0.00023561,2]
[372568688,1752685868098,-1535.14,0.00023561,2]
[372568689,1752685868112,-914.77,0.00023561,2]
[372568690,1752685868125,-460.0,0.00023561,2]
[372568691,1752685868138,-5881.17,0.00023561,2]
[372568692,1752685868151,-1200.41,0.00023561,2]
[372568693,1752685868164,-4675.14,0.00023561,2]
[372568694,1752685868177,-257.68,0.00023561,2]
[372568695,1752685868191,-1850.24,0.00023561,2]
[372568696,1752685868205,-922.03,0.00023561,2]
[372568697,1752685868219,-2753.5,0.00023561,2]
[372568698,1752685868233,-881.48,0.00023561,2]
[372568699,1752685868246,-694.7,0.00023561,2]
[372568700,1752685868260,-530.9,0.00023561,2]
[372568701,1752685868273,-460.0,0.00023561,2]
[372568702,1752685868287,-460.0,0.00023561,2]
[372568703,1752685868300,-460.0,0.00023561,2]
[372568704,1752685868313,-613.81,0.00023561,2]
[372568705,1752685868326,-577.21,0.00023561,2]
[372568706,1752685868339,-641.21,0.00023561,2]
[372568707,1752685868353,-1400.36,0.00023561,2]
[372568708,1752685868367,-476.08,0.00023561,2]
[372568709,1752685868384,-563.13,0.00023561,2]
[372568710,1752685868398,-671.66,0.00023561,2]
[372568711,1752685868411,-2382.71,0.00023561,2]
[372568712,1752685868425,-731.92,0.00023561,2]
[372568713,1752685868439,-3088.72,0.00023561,2]
[372568714,1752685868454,-3000.0,0.0002357,2]
[372568715,1752685868468,-3000.0,0.0002358,2]
[372568716,1752685868483,-3000.0,0.0002359,2]
[372568717,1752685868496,-3000.0,0.000236,2]
[372568718,1752685868509,-5888.0,0.00023604,2]
[372568719,1752685868522,-3030.09671887,0.00023606,2]
[372568720,1752685868536,-5888.0,0.0002361,2]
[372568721,1752685868550,-3000.0,0.0002361,2]
[372568722,1752685868565,-3000.0,0.0002362,2]
[372568723,1752685868579,-3000.0,0.0002363,2]
[372568725,1752685868604,-3103.318093,0.0002364,2]
[372568726,1752685868618,-459.6,0.0002364,6]
[372568727,1752685868633,-1224.7006087,0.00023657,2]
[372568728,1752685868646,-576.8651031,0.00023657,2]
[372568729,1752685868660,-576.8651031,0.00023657,2]
[372568730,1752685868675,-576.8651031,0.00023657,2]
[372568731,1752685868688,-355.5974322,0.00023657,2]
[372568732,1752685868703,-355.6923607,0.00023657,2]
[372568733,1752685868717,-178.021619,0.00023657,2]
[372568734,1752685868733,-356.043238,0.00023657,2]
[372568735,1752685868747,-153.0,0.00023657,2]
[372568736,1752685868760,-178.021619,0.00023657,2]
[372568737,1752685868773,-178.021619,0.00023657,2]
[372568738,1752685868787,-153.0,0.00023657,2]
[372568739,1752685868801,-306.0,0.00023657,2]
[372568740,1752685868815,-175.946076,0.00023657,2]
[372568741,1752685868830,-153.0,0.00023657,2]
[372568742,1752685868843,-153.0,0.00023657,2]
[372568743,1752685868852,-153.0,0.00023657,2]
[372568744,1752685868862,-153.0,0.00023657,2]
[372568745,1752685868875,-153.0,0.00023657,2]
[372568746,1752685868884,-153.0,0.00023657,2]
[372568747,1752685868894,-306.0,0.00023657,2]
[372568748,1752685868904,-153.0,0.00023676,2]
[372568749,1752685869079,-456.3646118,0.00023676,2]
[372568750,1752685869104,-153.0,0.00023676,2]
[372568751,1752685869124,-5916.31313928,0.00023728,9]
[372568752,1752685869134,-5888.0,0.00023736,2]
[372568753,1752685869143,-5888.0,0.00023747,2]
[372568754,1752685869152,-991.3853258,0.00023753,3]
[372568755,1752685869162,-5888.0,0.00023768,2]
[372568756,1752685869172,-300.0,0.00023784,2]
[372568757,1752685869183,-160.0,0.0002379,5]
[372568758,1752685869192,-5888.0,0.00023831,2]
[372568759,1752685869202,-200.0,0.00023835,2]
[372568760,1752685869211,-1269.97958452,0.00023835,2]
[372568761,1752685869221,-460.0,0.00023835,2]
[372568762,1752685869231,-460.0,0.00023835,2]
[372568763,1752685869240,-593.36,0.00023835,2]
[372568764,1752685869250,-460.0,0.00023835,2]
[372568765,1752685869260,-460.0,0.00023835,2]
[372568766,1752685869270,-579.17,0.00023835,2]
[372568767,1752685869279,-657.27,0.00023835,2]
[372568768,1752685869288,-460.0,0.00023835,2]
[372568769,1752685869299,-729.43,0.00023835,2]
[372568770,1752685869309,-460.0,0.00023835,2]
[372568771,1752685869318,-1697.15,0.00023835,2]
[372568772,1752685869328,-1666.88,0.00023835,2]
[372568773,1752685869337,-1357.78,0.00023835,2]
[372568774,1752685869346,-586.34,0.00023835,2]
[372568775,1752685869356,-755.09,0.00023835,2]
[372568776,1752685869366,-760.93,0.00023835,2]
[372568777,1752685869378,-460.0,0.00023835,2]
[372568778,1752685869390,-2012.57,0.00023835,2]
[372568779,1752685869400,-587.6,0.00023835,2]
[372568780,1752685869410,-5099.27,0.00023835,2]
[372568781,1752685869420,-1833.17,0.00023835,2]
[372568782,1752685869430,-537.99,0.00023835,2]
[372568783,1752685869440,-492.66,0.00023835,2]
[372568784,1752685869450,-593.0,0.00023835,2]
[372568785,1752685869467,-1021.02,0.00023835,2]
[372568786,1752685869477,-1535.14,0.00023835,2]
[372568787,1752685869487,-914.77,0.00023835,2]
[372568788,1752685869497,-460.0,0.00023835,2]
[372568789,1752685869506,-5881.17,0.00023835,2]
[372568790,1752685869517,-1200.41,0.00023835,2]
[372568791,1752685869527,-4675.14,0.00023835,2]
[372568792,1752685869537,-1850.24,0.00023835,2]
[372568793,1752685869547,-922.03,0.00023835,2]
[372568794,1752685869557,-881.48,0.00023835,2]
[372568796,1752685869567,-2753.5,0.00023835,2]
[372568797,1752685869576,-694.7,0.00023835,2]
[372568798,1752685869587,-530.9,0.00023835,2]